[Event "Polish Ekstraliga 2024"]
[Site "Walbrzych"]
[Date "2024.10.07"]
[Round "1.1"]
[White "Svane, Rasmus"]
[Black "Volokitin, Andrei"]
[Result "1/2-1/2"]
[ECO "E08"]
[WhiteElo "2629"]
[BlackElo "2648"]
[Annotator "TA"]
[PlyCount "102"]
[EventDate "2024.10.05"]
[EventType "team-tourn"]
[EventCountry "POL"]
[SourceTitle "playchess.com"]
[Source "ChessBase"]
[SourceQuality "1"]
[WhiteTeam "Gliwice"]
[BlackTeam "Pegow"]
[TimeControl "40/5400+30:1800+30"]

{[%evp 24,102,4,0,0,0,0,-7,-18,-27,-16,-44,-31,-39,-32,-30,-22,-16,-27,-30,-34,-47,-32,-49,-25,-62,-17,-12,-21,-17,-29,-18,-28,-30,0,0,0,0,0,-13,0,-13,-13,-13,-13,-43,-40,-43,-26,-30,-25,-48,-24,-40,0,0,0,0,0,0,0,0,0,-27,0,0,0,-20,-17,-14,-22,-50,-42,-72,-15,-39,0,-77,0,0,0]} 1. d4 {[%emt 0:00:03]} Nf6 {[%emt 0:00:08]} 2. c4 {[%emt 0:00:27]} e6 {[%emt 0:00:12]} 3. Nf3 {[%emt 0:00:13]} d5 {[%emt 0:00:18]} 4. g3 {[%emt 0:00:17]} Bb4+ {[%emt 0:00:20]} 5. Bd2 {[%emt 0:00:11]} Be7 {[%emt 0:00:07]} 6. Bg2 {[%emt 0:00:09]} O-O {[%emt 0:00:07]} 7. O-O {[%emt 0:00:18]} c6 {[%emt 0:00:10]} 8. Qc2 {[%emt 0:01:23]} Nbd7 {[%emt 0:00:46]} 9. Bf4 {[%emt 0:04:06]} b6 {[%emt 0:02:01]} 10. Nbd2 $1 {[%emt 0:24:11][%mdl 4] is currently scoring better than 10.Rd1.} Bb7 {[%emt 0:04:48]} 11. e4 {[%emt 0:00:38] E08: Closed Catalan: Main Line: 7 Qc2.} Nh5 {[%emt 0:00:12]} 12. Be3 {[%emt 0:00:24]} Nhf6 {[%emt 0:00:04]} 13. Bf4 {[%emt 0:00:13]} Nh5 {[%emt 0:00:05]} 14. Be3 {[%emt 0:00:07]} Nhf6 {[%emt 0:00:03]} 15. h4 {[%emt 0:08:11]} dxc4 {[%emt 0:16:24]} 16. Qxc4 $146 {[%emt 0:32:19]} (16. e5 {is more complex.} Nd5 17. Nxc4 c5 18. Ng5) ({Predecessor:} 16. e5 Nd5 17. Ng5 Bxg5 18. Bxg5 Qb8 19. Nxc4 c5 20. dxc5 h6 21. Bd2 Nxe5 22. Nxe5 Qxe5 23. b4 Rfc8 24. Rac1 {½-½ L'Ami,E (2645)-Pechac,J (2611) Prague Challengers 5th 2023 (9)}) 16... c5 {[%emt 0:02:08]} 17. dxc5 {[%emt 0:00:44]} Bxc5 {[%emt 0:14:54]} 18. Qe2 {[%emt 0:14:29]} Ng4 {[%emt 0:15:11]} 19. Bd4 {[%emt 0:03:37]} a5 {[%emt 0:09:30]} 20. Rfd1 {[%emt 0:00:38]} Ba6 {[%emt 0:01:32]} 21. Nc4 {[%emt 0:01:30]} Qc7 {[%emt 0:09:17]} 22. Bxc5 {[%emt 0:01:11]} Nxc5 {[%emt 0:03:52]} 23. b3 {[%emt 0:02:08]} a4 {[%emt 0:05:18]} 24. Nfd2 {[%emt 0:02:00]} Ne5 {[%emt 0:01:07]} 25. Qe3 {[%emt 0:00:25]} Bxc4 {[%emt 0:02:14]} 26. Nxc4 {[%emt 0:00:22]} Nxc4 {[%emt 0:10:53]} 27. bxc4 {[%emt 0:00:01]} Rad8 {[%emt 0:00:02]} 28. e5 {[%emt 0:00:47]} Rxd1+ {[%emt 0:00:16]} 29. Rxd1 {[%emt 0:00:03]} Rd8 {[%emt 0:00:05]} 30. Rd4 {[%emt 0:02:00]} h5 {[%emt 0:01:17]} 31. Bf3 {[%emt 0:01:22]} g6 {[%emt 0:00:39]} 32. Be2 {[%emt 0:00:24]} Rxd4 {[%emt 0:01:53]} 33. Qxd4 {[%emt 0:00:02]} a3 {[%emt 0:00:34]} 34. Qe3 {[%emt 0:00:18]} Nd7 {[%emt 0:00:30]} 35. Qxa3 {[%emt 0:00:25]} Qxe5 {[%emt 0:00:09]} 36. Qd3 {[%emt 0:01:42]} Nf6 {[%emt 0:00:26]} 37. Bf1 {[%emt 0:00:30]} Kg7 {[%emt 0:00:41]} 38. a3 {[%emt 0:00:35]} Qb2 {[%emt 0:00:39]} 39. Be2 {[%emt 0:00:29]} Qe5 {[%emt 0:00:31]} 40. Bf3 {[%emt 0:00:00]} Qe1+ {[%emt 0:00:00]} 41. Kg2 {[%emt 0:00:48]} Qe5 {[%emt 0:07:47]} 42. Qd2 {[%emt 0:04:25]} Qc5 {[%emt 0:01:49]} 43. Qd3 {[%emt 0:06:06]} Qe5 {[%emt 0:09:48]} 44. Qd2 {[%emt 0:01:40]} Qc5 {[%emt 0:03:24]} 45. Qd3 {[%emt 0:00:22]} Ne8 {[%emt 0:03:50]} 46. Qc3+ {[%emt 0:02:20]} Kg8 {[%emt 0:00:21]} 47. Be2 {[%emt 0:08:02]} Nd6 {[%emt 0:00:26]} 48. Qd3 {[%emt 0:00:46]} Nf5 {[%emt 0:00:44]} ({Black should try} 48... Kf8 $17) 49. Bf3 {[%emt 0:01:44]} Nd6 {[%emt 0:00:12]} 50. Be2 {[%emt 0:00:08]} e5 {[%emt 0:00:45]} ({Better is} 50... Kf8 $17) 51. Bf3 $11 {[%emt 0:01:20]} e4 {[%emt 0:06:01]} (51... Qxc4 $2 {loses.} 52. Qxd6 e4 53. Bd1 $18) (51... Nxc4 $2 {is the wrong capture.} 52. Bd5 Nd6 53. Qxg6+ Kf8 54. Qh6+ (54. Qxh5 $2 {too greedy.} Qxd5+ 55. Kh2 Qc5 $19) 54... Kg8 55. Qg5+ Kf8 56. Qxe5 Qxa3 57. Qxh5 $18) 1/2-1/2

[Event "Polish Ekstraliga 2024"]
[Site "Walbrzych"]
[Date "2024.10.07"]
[Round "1.2"]
[White "Lagarde, Maxime"]
[Black "Tomczak, Jacek"]
[Result "0-1"]
[ECO "B12"]
[WhiteElo "2595"]
[BlackElo "2584"]
[Annotator "RC"]
[PlyCount "90"]
[EventDate "2024.10.05"]
[EventType "team-tourn"]
[EventCountry "POL"]
[SourceTitle "playchess.com"]
[Source "ChessBase"]
[SourceQuality "1"]
[WhiteTeam "Pegow"]
[BlackTeam "Gliwice"]
[TimeControl "40/5400+30:1800+30"]

1. e4 {[%emt 0:00:03]} c6 {[%emt 0:00:07]} 2. d4 {[%emt 0:00:03]} d5 {[%emt 0:00:07]} 3. e5 {[%emt 0:00:04]} Bf5 {[%emt 0:00:10]} 4. Nf3 {[%emt 0:00:04]} e6 {[%emt 0:00:12]} 5. Be2 {[%emt 0:00:03]} Ne7 {[%emt 0:00:31]} 6. c3 {[%emt 0:00:04]} Ng6 {[%emt 0:00:48]} 7. O-O {[%emt 0:00:41]} f6 {[%emt 0:01:50]} 8. Bd3 {[%emt 0:00:08]} Bxd3 {[%emt 0:09:31]} 9. Qxd3 {[%emt 0:00:04]} Nd7 {[%emt 0:00:18]} 10. c4 {[%emt 0:19:16]} Nb6 {[%emt 0:11:13]} 11. cxd5 {[%emt 0:17:07]} Nxd5 {[%emt 0:01:31]} 12. exf6 {[%emt 0:00:46]} Qxf6 {[%emt 0:05:38]} 13. Nc3 {[%emt 0:02:15]} Be7 {[%emt 0:13:10]} 14. Bg5 {[%emt 0:11:02]} Qf7 {[%emt 0:00:49]} 15. Nxd5 {[%emt 0:03:03]} exd5 {[%emt 0:01:01]} 16. Bxe7 {[%emt 0:00:38]} Nxe7 {[%emt 0:00:35]} 17. Ne5 {[%emt 0:01:54]} Qf6 {[%emt 0:06:50]} 18. Rae1 {[%emt 0:06:24]} Rd8 {[%emt 0:28:40]} 19. Qb3 {[%emt 0:11:30]} b6 {[%emt 0:00:45]} 20. Qa3 {[%emt 0:05:14]} O-O {[%emt 0:00:39]} 21. Qxa7 {[%emt 0:00:26]} Qd6 {[%emt 0:01:09]} 22. Qxb6 {[%emt 0:01:47]} Rb8 {[%emt 0:01:15]} 23. Qa7 {[%emt 0:00:28]} Rxb2 {[%emt 0:01:08]} 24. Nd3 {[%emt 0:03:06]} Nc8 {[%emt 0:01:15]} 25. Qa5 {[%emt 0:00:14]} Rb7 {[%emt 0:02:22]} 26. g3 {[%emt 0:04:09]} Ra7 {[%emt 0:01:55]} 27. Qd2 {[%emt 0:00:04]} Nb6 {[%emt 0:00:49]} 28. Nc5 {[%emt 0:04:04]} Nc4 {[%emt 0:00:18]} 29. Qg5 {[%emt 0:02:32]} h6 {[%emt 0:03:15]} 30. Qg4 {[%emt 0:00:04]} Nd2 {[%emt 0:00:55]} 31. Re6 {[%emt 0:00:31]} Qb8 {[%emt 0:00:07]} 32. Rd1 {[%emt 0:05:41]} Nf3+ {[%emt 0:00:02]} 33. Kh1 {[%emt 0:00:23]} Qc8 {[%emt 0:04:14]} 34. h4 {[%emt 0:02:41]} Ra5 35. a3 Rxa3 {[%emt 0:00:54]} 36. Rf1 {[%emt 0:00:58]} Ra2 {[%emt 0:00:58]} 37. Nb3 {[%emt 0:00:38]} Re2 {[%emt 0:00:49]} 38. Nc5 {[%emt 0:00:10]} Rf6 {[%emt 0:01:00]} 39. Kg2 {[%emt 0:00:50]} Ne1+ {[%emt 0:00:48]} 40. Rxe1 {[%emt 0:00:41]} Rfxf2+ {[%emt 0:02:11]} 41. Kg1 {[%emt 0:00:02]} Rg2+ {[%emt 0:00:04]} 42. Kh1 {[%emt 0:00:02]} Rh2+ {[%emt 0:01:03]} 43. Kg1 {[%emt 0:00:02]} Reg2+ {[%emt 0:00:36]} 44. Kf1 {[%emt 0:00:02]} Qf8+ {[%emt 0:00:44]} 45. Qf4 {[%emt 0:00:01]} Rf2+ {[%emt 0:00:13]} 0-1

[Event "Polish Ekstraliga 2024"]
[Site "Walbrzych"]
[Date "2024.10.07"]
[Round "1.3"]
[White "Warakomski, Tomasz"]
[Black "Zilka, Stepan"]
[Result "1/2-1/2"]
[ECO "C42"]
[WhiteElo "2545"]
[BlackElo "2552"]
[Annotator "ChessBase"]
[PlyCount "274"]
[EventDate "2024.10.05"]
[EventType "team-tourn"]
[EventCountry "POL"]
[SourceTitle "playchess.com"]
[Source "ChessBase"]
[SourceQuality "1"]
[WhiteTeam "Gliwice"]
[BlackTeam "Pegow"]
[TimeControl "40/5400+30:1800+30"]

1. e4 {[%emt 0:00:03]} e5 {[%emt 0:00:06]} 2. Nf3 {[%emt 0:00:06]} Nf6 {[%emt 0:00:05]} 3. Nxe5 {[%emt 0:02:09]} Nxe4 {[%emt 0:00:35]} 4. Qe2 {[%emt 0:04:54]} Qe7 {[%emt 0:00:08]} 5. Qxe4 {[%emt 0:00:34]} d6 {[%emt 0:00:10]} 6. d4 {[%emt 0:01:31]} dxe5 {[%emt 0:00:11]} 7. dxe5 {[%emt 0:00:19]} Nc6 {[%emt 0:00:08]} 8. Nc3 {[%emt 0:06:08]} Qxe5 {[%emt 0:00:20]} 9. Bf4 {[%emt 0:00:07]} Qxe4+ {[%emt 0:01:05]} 10. Nxe4 {[%emt 0:00:06]} Nd4 {[%emt 0:17:09]} 11. O-O-O {[%emt 0:01:54]} Ne6 {[%emt 0:00:07]} 12. Be5 {[%emt 0:05:06]} Bd7 {[%emt 0:03:51]} 13. Bc4 {[%emt 0:00:37]} O-O-O {[%emt 0:00:25]} 14. Rhe1 {[%emt 0:04:07]} Bb4 {[%emt 0:10:16]} 15. c3 {[%emt 0:00:48]} Be7 {[%emt 0:00:06]} 16. Ng3 {[%emt 0:11:13]} Rhe8 {[%emt 0:05:15]} 17. Nh5 {[%emt 0:04:25]} Bg5+ {[%emt 0:06:15]} 18. f4 {[%emt 0:03:35]} Bh6 {[%emt 0:00:07]} 19. Kc2 {[%emt 0:22:53]} Nc5 {[%emt 0:19:42]} 20. b4 {[%emt 0:11:18]} Ba4+ {[%emt 0:04:37]} 21. Bb3 {[%emt 0:00:17]} Rxd1 {[%emt 0:00:43]} 22. Rxd1 {[%emt 0:00:21]} Nxb3 {[%emt 0:03:33]} 23. axb3 {[%emt 0:00:06]} Bd7 {[%emt 0:00:03]} 24. Bxg7 {[%emt 0:03:08]} Bxg7 {[%emt 0:03:21]} 25. Nxg7 {[%emt 0:00:05]} Rg8 {[%emt 0:00:09]} 26. Nh5 {[%emt 0:00:07]} Rxg2+ {[%emt 0:00:54]} 27. Rd2 {[%emt 0:00:10]} Bf5+ {[%emt 0:02:12]} 28. Kc1 {[%emt 0:00:05]} Rg1+ {[%emt 0:01:57]} 29. Kb2 {[%emt 0:00:04]} Rb1+ {[%emt 0:02:05]} 30. Ka2 {[%emt 0:03:39]} Rf1 {[%emt 0:01:11]} 31. Re2 {[%emt 0:01:49]} b6 {[%emt 0:00:21]} 32. b5 {[%emt 0:04:25]} Be6 {[%emt 0:06:32]} 33. c4 {[%emt 0:01:01]} Kb7 {[%emt 0:01:40]} 34. h4 {[%emt 0:05:06]} a6 {[%emt 0:01:40]} 35. bxa6+ {[%emt 0:00:37]} Kxa6 {[%emt 0:00:01]} 36. Re5 {[%emt 0:00:49]} c5 {[%emt 0:01:05]} 37. Ng7 {[%emt 0:02:06]} Rxf4 {[%emt 0:05:24]} 38. Rh5 {[%emt 0:00:22]} Bg4 {[%emt 0:01:47]} 39. Rxh7 {[%emt 0:00:03]} Bd1 {[%emt 0:00:07]} 40. Ne8 {[%emt 0:00:00]} Rf3 {[%emt 0:00:00]} 41. Nd6 {[%emt 0:03:07]} Rd3 {[%emt 0:13:36]} 42. Rh6 {[%emt 0:09:33]} f5 {[%emt 0:00:01]} 43. Rf6 {[%emt 0:01:02]} Bxb3+ {[%emt 0:00:52]} 44. Kb2 {[%emt 0:00:16]} Bd1 {[%emt 0:01:17]} 45. Nxf5 {[%emt 0:04:58]} Rf3 {[%emt 0:00:43]} 46. Rd6 {[%emt 0:01:58]} Be2 {[%emt 0:00:13]} 47. Ne7 {[%emt 0:00:51]} Bxc4 {[%emt 0:00:54]} 48. h5 {[%emt 0:00:16]} Ka5 {[%emt 0:01:22]} 49. Nc6+ {[%emt 0:01:08]} Ka4 {[%emt 0:00:49]} 50. Ne5 {[%emt 0:00:33]} Rb3+ {[%emt 0:00:29]} 51. Kc2 {[%emt 0:00:13]} Bg8 {[%emt 0:00:27]} 52. Nd7 {[%emt 0:02:49]} Bh7+ {[%emt 0:00:11]} 53. Kd2 {[%emt 0:00:03]} Ka5 {[%emt 0:03:25]} 54. Nf6 {[%emt 0:02:49]} Bb1 {[%emt 0:00:33]} 55. h6 {[%emt 0:01:07]} c4 {[%emt 0:00:31]} 56. Nd5 {[%emt 0:01:50]} b5 {[%emt 0:01:04]} 57. Kc1 {[%emt 0:05:16]} Bf5 {[%emt 0:02:34]} 58. Ne7 {[%emt 0:03:31]} Be4 {[%emt 0:06:36]} 59. Re6 {[%emt 0:00:09]} Bd3 {[%emt 0:00:36]} 60. Nc6+ {[%emt 0:00:58]} Ka4 {[%emt 0:00:01]} 61. Nd4 {[%emt 0:01:38]} Rb1+ {[%emt 0:01:24]} 62. Kd2 {[%emt 0:00:02]} Kb4 {[%emt 0:03:11]} 63. Re5 {[%emt 0:00:57]} Rb2+ {[%emt 0:00:26]} 64. Ke3 {[%emt 0:00:03]} Ka5 {[%emt 0:00:41]} 65. Rh5 {[%emt 0:01:00]} Bh7 {[%emt 0:00:02]} 66. Rc5 {[%emt 0:00:13]} Ka4 {[%emt 0:01:05]} 67. Nxb5 {[%emt 0:00:34]} Rxb5 {[%emt 0:00:40]} 68. Rxc4+ {[%emt 0:00:03]} Kb3 {[%emt 0:00:19]} 69. Rc7 {[%emt 0:00:12]} Bc2 {[%emt 0:00:17]} 70. Kf4 {[%emt 0:00:27]} Rh5 {[%emt 0:00:19]} 71. Rc6 {[%emt 0:00:05]} Bd3 {[%emt 0:00:31]} 72. Kg4 {[%emt 0:00:12]} Be2+ {[%emt 0:00:04]} 73. Kf4 {[%emt 0:00:03]} Kb4 {[%emt 0:00:10]} 74. Re6 {[%emt 0:00:20]} Bc4 {[%emt 0:01:07]} 75. Kg4 {[%emt 0:01:01]} Rh1 {[%emt 0:00:04]} 76. Rf6 {[%emt 0:00:16]} Kc5 {[%emt 0:00:36]} 77. Kf5 {[%emt 0:00:16]} Bd3+ {[%emt 0:01:12]} 78. Ke6 {[%emt 0:00:13]} Kd4 {[%emt 0:00:18]} 79. Kf7 {[%emt 0:00:41]} Ke5 {[%emt 0:00:04]} 80. Re6+ {[%emt 0:00:15]} Kf5 {[%emt 0:00:45]} 81. Rf6+ {[%emt 0:00:06]} Kg5 {[%emt 0:00:08]} 82. Kg7 {[%emt 0:00:51]} Rg1 {[%emt 0:00:34]} 83. Rd6 {[%emt 0:01:54]} Kh5+ {[%emt 0:00:08]} 84. Kh8 {[%emt 0:01:05]} Bg6 {[%emt 0:00:41]} 85. h7 {[%emt 0:00:45]} Rc1 {[%emt 0:01:19]} 86. Kg7 {[%emt 0:00:37]} Rc7+ {[%emt 0:00:07]} 87. Kf6 {[%emt 0:00:04]} Rf7+ {[%emt 0:00:16]} 88. Ke5 {[%emt 0:00:05]} Rxh7 {[%emt 0:00:59]} 89. Rd2 {[%emt 0:00:26]} Re7+ {[%emt 0:00:13]} 90. Kf6 {[%emt 0:00:09]} Rf7+ {[%emt 0:00:09]} 91. Ke6 {[%emt 0:00:10]} Rf4 {[%emt 0:00:22]} 92. Rh2+ {[%emt 0:00:09]} Kg5 {[%emt 0:00:06]} 93. Rg2+ {[%emt 0:00:02]} Kh6 {[%emt 0:00:04]} 94. Ke5 {[%emt 0:00:10]} Rf5+ {[%emt 0:00:20]} 95. Ke6 {[%emt 0:00:45]} Kg7 {[%emt 0:00:18]} 96. Rg1 {[%emt 0:00:05]} Rf6+ {[%emt 0:00:13]} 97. Ke7 {[%emt 0:00:23]} Rf2 {[%emt 0:00:13]} 98. Re1 {[%emt 0:00:29]} Rf8 {[%emt 0:00:25]} 99. Rg1 {[%emt 0:00:20]} Re8+ {[%emt 0:00:04]} 100. Kd7 {[%emt 0:00:15]} Re4 {[%emt 0:00:16]} 101. Rf1 {[%emt 0:00:09]} Bf7 {[%emt 0:01:22]} 102. Rf2 {[%emt 0:00:34]} Be6+ {[%emt 0:00:50]} 103. Kd6 {[%emt 0:00:28]} Kg6 {[%emt 0:00:10]} 104. Rf1 {[%emt 0:00:36]} Bf5 {[%emt 0:00:08]} 105. Kd5 {[%emt 0:00:20]} Kf6 {[%emt 0:00:06]} 106. Ra1 {[%emt 0:00:30]} Re2 {[%emt 0:00:30]} 107. Ra6+ {[%emt 0:00:17]} Be6+ {[%emt 0:00:04]} 108. Kd4 {[%emt 0:00:02]} Kf5 {[%emt 0:00:07]} 109. Ra5+ {[%emt 0:01:32]} Kf4 {[%emt 0:00:17]} 110. Kc5 {[%emt 0:00:12]} Re5+ {[%emt 0:01:02]} 111. Kb4 {[%emt 0:00:25]} Bd5 {[%emt 0:00:17]} 112. Kc3 {[%emt 0:00:18]} Re3+ {[%emt 0:00:21]} 113. Kd4 {[%emt 0:01:56]} Re4+ {[%emt 0:00:05]} 114. Kd3 {[%emt 0:00:05]} Ke5 {[%emt 0:00:42]} 115. Ra1 {[%emt 0:00:16]} Rb4 {[%emt 0:01:41]} 116. Re1+ {[%emt 0:00:09]} Be4+ {[%emt 0:00:04]} 117. Kc3 {[%emt 0:00:06]} Rb8 {[%emt 0:00:05]} 118. Rd1 {[%emt 0:01:09]} Rc8+ {[%emt 0:00:14]} 119. Kb2 {[%emt 0:00:16]} Bd5 {[%emt 0:00:58]} 120. Re1+ {[%emt 0:00:13]} Kd4 {[%emt 0:00:13]} 121. Rd1+ {[%emt 0:00:06]} Kc5 {[%emt 0:00:09]} 122. Kc3 {[%emt 0:00:36]} Ra8 {[%emt 0:00:21]} 123. Rd3 {[%emt 0:00:56]} Be4 {[%emt 0:00:18]} 124. Re3 {[%emt 0:00:28]} Kd5 {[%emt 0:00:49]} 125. Re2 {[%emt 0:01:22]} Rc8+ {[%emt 0:00:15]} 126. Kd2 {[%emt 0:00:17]} Kd4 {[%emt 0:00:13]} 127. Rf2 {[%emt 0:00:06]} Rc3 {[%emt 0:00:35]} 128. Re2 {[%emt 0:00:09]} Ra3 {[%emt 0:01:13]} 129. Rf2 {[%emt 0:00:06]} Bf3 {[%emt 0:04:23]} 130. Ke1 {[%emt 0:00:08]} Ke3 {[%emt 0:02:23]} 131. Re2+ {[%emt 0:00:06]} Kf4 {[%emt 0:00:03]} 132. Rb2 {[%emt 0:00:12]} Rd3 {[%emt 0:00:38]} 133. Rd2 {[%emt 0:00:21]} Re3+ {[%emt 0:00:11]} 134. Kf2 {[%emt 0:00:07]} Be4 {[%emt 0:00:06]} 135. Re2 {[%emt 0:00:11]} Rh3 {[%emt 0:00:09]} 136. Ke1 {[%emt 0:00:28]} Bf3 {[%emt 0:00:49]} 137. Rb2 {[%emt 0:00:14]} Rh1+ {[%emt 0:00:20]} 1/2-1/2

[Event "Polish Ekstraliga 2024"]
[Site "Walbrzych"]
[Date "2024.10.07"]
[Round "1.4"]
[White "Moranda, Wojciech"]
[Black "Kantans, Toms"]
[Result "1/2-1/2"]
[ECO "B21"]
[WhiteElo "2559"]
[BlackElo "2493"]
[Annotator "TA"]
[PlyCount "23"]
[EventDate "2024.10.05"]
[EventType "team-tourn"]
[EventCountry "POL"]
[SourceTitle "playchess.com"]
[Source "ChessBase"]
[SourceQuality "1"]
[WhiteTeam "Pegow"]
[BlackTeam "Gliwice"]
[TimeControl "40/5400+30:1800+30"]

{[%evp 9,23,0,0,0,8,0,11,0,18,20,17,0,0,-18,-10,-33]} 1. e4 {[%emt 0:00:04]} c5 {[%emt 0:00:17]} 2. d4 {[%emt 0:00:16]} cxd4 {[%emt 0:00:22]} 3. Qxd4 {[%emt 0:00:09]} Nc6 {[%emt 0:02:34]} 4. Qd3 {[%emt 0:00:13]} g6 {[%emt 0:06:21]} 5. Nc3 {[%emt 0:00:50][%cal Bb1c3,Bc3d5,Bd5f6][%mdl 32]} Bg7 {[%emt 0:00:10] The position is equal.} 6. Nf3 {[%emt 0:00:29]} Nf6 {[%emt 0:04:01]} 7. Be2 {[%emt 0:01:01]} O-O {[%emt 0:04:39][%cal Od7d5]} 8. Nd5 {[%emt 0:01:02]} b5 {[%emt 0:08:45]} 9. O-O {[%emt 0:05:43]} a5 {[%emt 0:01:58]} 10. Rd1 {[%emt 0:21:23]} (10. Qxb5 $2 {loses.} Ba6 11. Qxa6 Rxa6 12. Bxa6 Nxe4 $19) 10... b4 {[%emt 0:09:09]} 11. a3 {[%emt 0:12:02]} Ba6 {[%emt 0:18:24]} 12. Nxf6+ {[%emt 0:10:06] An uneventful encounter.   Weighted Error Value: White=0.08 (flawless) /Black=0.04 (flawless) .  OK:         	White=2     	Black=3      Best:        	---       	Black=1} 1/2-1/2

[Event "Polish Ekstraliga 2024"]
[Site "Walbrzych"]
[Date "2024.10.07"]
[Round "1.5"]
[White "Klekowski, Maciej"]
[Black "Plat, Vojtech"]
[Result "1-0"]
[ECO "D87"]
[WhiteElo "2463"]
[BlackElo "2488"]
[Annotator "TA"]
[PlyCount "77"]
[EventDate "2024.10.05"]
[EventType "team-tourn"]
[EventCountry "POL"]
[SourceTitle "playchess.com"]
[Source "ChessBase"]
[SourceQuality "1"]
[WhiteTeam "Gliwice"]
[BlackTeam "Pegow"]
[TimeControl "40/5400+30:1800+30"]

{[%evp 22,76,55,7,37,21,31,24,21,0,-12,-2,0,-2,0,0,8,0,0,0,30,0,0,0,35,32,39,30,70,38,93,94,91,93,100,35,27,26,326,154,147,131,672,697,698,687,681,617,29982,29983,29983,29984,29996,29997,29998,29999,29999]} 1. d4 {[%emt 0:00:04]} Nf6 {[%emt 0:00:12]} 2. c4 {[%emt 0:00:10]} g6 {[%emt 0:00:13]} 3. Nc3 {[%emt 0:00:07]} d5 {[%emt 0:00:08]} 4. cxd5 {[%emt 0:00:07]} Nxd5 {[%emt 0:00:06]} 5. e4 {[%emt 0:00:06]} Nxc3 {[%emt 0:00:05]} 6. bxc3 {[%emt 0:00:04]} Bg7 {[%emt 0:00:09]} 7. Bc4 {[%emt 0:00:09]} c5 {[%emt 0:00:05]} 8. Ne2 {[%emt 0:00:05]} O-O {[%emt 0:00:16]} 9. O-O {[%emt 0:00:29]} Nc6 {[%emt 0:00:04]} 10. Be3 {[%emt 0:00:05]} Bg4 {[%emt 0:01:05]} 11. f3 {[%emt 0:00:06]} Na5 {[%emt 0:00:02]} 12. Bd3 {[%emt 0:00:05]} (12. fxg4 Nxc4 13. Bf2 Qa5 $11) (12. Bxf7+ $14 {might be stronger.} Rxf7 13. fxg4) 12... Bd7 {[%emt 0:07:15]} 13. Rb1 {[%emt 0:19:48]} Qc7 {[%emt 0:10:23]} 14. h4 {[%emt 0:06:34][%cal Bh2h4,Bh4h5,Bh5h6][%mdl 32]} e5 {[%emt 0:03:40] White has an edge.} 15. h5 {[%emt 0:07:28]} ({Much weaker is} 15. dxc5 Rfd8 $15) 15... cxd4 {[%emt 0:02:34]} 16. cxd4 {[%emt 0:00:07]} exd4 {[%emt 0:00:04]} 17. Bf4 {[%emt 0:03:37]} Qc5 {[%emt 0:10:50]} 18. h6 {[%emt 0:03:27]} Bh8 {[%emt 0:00:31]} 19. Bd2 {[%emt 0:04:09]} b6 {[%emt 0:09:27]} 20. Bb4 {[%emt 0:02:02]} Qg5 {[%emt 0:04:55]} 21. f4 {[%emt 0:02:26]} Qxh6 {[%emt 0:01:18]} 22. Bxf8 {[%emt 0:00:05]} Qxf8 {[%emt 0:02:53]} 23. e5 {[%emt 0:03:33][%cal Ob1c1]} Rd8 {[%emt 0:02:53]} 24. Rc1 {[%emt 0:03:29][%cal Oc1c7]} (24. Nxd4 $2 Qc5 25. Rf2 Qxd4 $17) 24... Qa3 {[%emt 0:13:10]} 25. Qd2 {[%emt 0:04:32][%cal Oc1c7]} Nb7 {[%emt 0:01:56]} ({Black should try} 25... Bc6 $1 $14) 26. Nxd4 $16 {[%emt 0:06:35]} Nc5 {[%emt 0:03:26]} 27. Bc4 {[%emt 0:00:36]} Bg4 {[%emt 0:13:18] Prevents Rf3} 28. Rfe1 {[%emt 0:21:53] Wards off Ne4} (28. Rc3 $16 Qa4 29. Qe3) 28... Bg7 $14 {[%emt 0:01:41]} 29. Qf2 {[%emt 0:02:27] And now Nb5 would win.} Ne4 $2 {[%emt 0:07:08][%mdl 8192]} 30. Qh4 {[%emt 0:00:17]} (30. Rxe4 $2 {too greedy.} Qxc1+ 31. Bf1 Qc5 $19) (30. Bxf7+ $18 {is the precise move to win.} Kxf7 31. Rc7+ (31. Rxe4 $2 Qxc1+ 32. Kh2 Qc5 $19) 31... Kg8 32. Rxe4) 30... Rxd4 $16 {[%emt 0:00:06]} 31. Qxg4 $40 {[%emt 0:00:14][%mdl 128] White has strong attack.} Bf8 $2 {[%emt 0:00:52][%mdl 8192] [#] Black cannot hold the game after this.} (31... Qe7 $16 32. Bb3 Nc5) 32. Bxf7+ $1 $18 {[%emt 0:07:42][%mdl 512]} Kxf7 {[%emt 0:01:02]} 33. Rc7+ {[%emt 0:00:04]} Be7 {[%emt 0:00:08][%cal Oh7h5] ...h5! would now be deadly.} 34. f5 {[%emt 0:00:04]} Qb4 {[%emt 0:04:08]} 35. fxg6+ {[%emt 0:00:27] White mates.} hxg6 {[%emt 0:00:05] [#]} 36. Rf1+ $1 {[%emt 0:00:02]} Ke8 {[%emt 0:01:15]} 37. Rc8+ {[%emt 0:00:51]} Rd8 {[%emt 0:00:12]} 38. Qxg6+ {[%emt 0:00:03]} Kd7 {[%emt 0:00:02]} 39. Qc6# {[%emt 0:00:33] Weighted Error Value: White=0.15 (very precise) /Black=0.68.  Loses game:     	---       	Black=2      Missed win:     	White=1     	---        Mistake:       	White=1     	Black=1      Inaccurate:     	White=3     	Black=3      OK:         	White=5     	Black=7      Best:        	White=1     	Black=1      Brilliant:      	White=1     	---} 1-0